Workbook

Sheet Заходи
H1: Додаток до Комплексної програми з енергоефективності та клімату на 2023-2025
A5: № заходу відповідно до каталогу заходів ЄЕВ | B5: Назва напряму діяльності | C5: Перелік заходів | D5: Відповідальний виконавець | E5: Пріоритетність виконання 1 | F5: Строк виконання заходу, роки | G5: Обсяг фінансування по роках, тис. грн. | K5: Джерела фінансування (бюджет Чортківської територіальної громади, обласний/державний бюджет, інвестиційні кошти комунального підприємства, грантові/кредитні кошти)
G6: 2022 | H6: 2023 | I6: 2024 | J6: 2025
A7: 1. Статегічний розвиток та просторове планування
A8: 1.1. Муніципальні концепції та стратегії
A9: 1.1.1. Стратегія щодо енергопостачання/енергоефективності/адаптації та пом'якшення змін клімату
A10: 1.1.1 а | B10: Встановлення якісних та кількісних цілей | C10: Моніторинг виконання Стратегічного плану розвитку Чортківської міської ради Тернопільської області на 2019-2026 роки | D10: відділ муніципального розвитку та енергоменеджменту | E10: ** | F10: 2022-2025 | G10: не потребує фінансування | H10: не потребує фінансування | I10: не потребує фінансування | J10: не потребує фінансування | K10: не потребує фінансування
A11: 1.1.2. Концепція щодо клімату та енергії
A12: 1.1.2 а | B12: Узгодження довгострокових та середньострокових цілей | C12: Розроблення Плану дій сталого енергетичного розвитку та клімату до 2030 року (в тому числі внесення змін) | D12: відділ муніципального розвитку та енергоменеджменту | E12: *** | F12: 2022 | G12: не потребує фінансування | K12: не потребує фінансування | M12: виконано
A13: 1.1.2 б | B13: Узгодження довгострокових та середньострокових цілей | C13: Розроблення Плану сталої міської мобільності | D13: управління комунального господарства, відділ архітектури та містобудівного кадастру Чортківської міської ради | E13: ** | F13: 2023-2024 | H13: не потребує фінансування | I13: не потребує фінансування | K13: не потребує фінансування
A14: 1.1.3. Моніторинг концепції/стратегії/програми/плану/тощо щодо енергопостачання/енергоефективності/адаптації та пом’якшення змін клімату
A15: 1.1.3 а | B15: Моніторинг та контроль | C15: Порядок розроблення міських цільових програм, моніторингу та звітності про їх виконання | D15: відділу з економічного розвитку та комунальної власності | E15: *** | F15: 2022 | G15: не потребує фінансування | K15: не потребує фінансування | M15: виконано
A16: 1.1.3 б | B16: Моніторинг та контроль | C16: Підготовлення моніторингового звіту про виконання Плану дій зі сталого енергетичного розвитку та клімату Чортківської територіальної громади до 2030 року | D16: відділ муніципального розвитку та енергоменеджменту | E16: *** | F16: 2023, 2025 | H16: не потребує фінансування | J16: не потребує фінансування | K16: не потребує фінансування
A17: 1.1.3 в | B17: Моніторинг та контроль | C17: Програма охорони довкілля, раціонального використання природних ресурсів та забезпечення екологічної безпеки Чортківської міської територіальної громади на 2021-2023 роки | D17: КП "Комбінат комунальних підприємств", КП "Чортківське ВУВКГ" | E17: ** | F17: 2022-2023 | G17: 442 | H17: 225 | K17: бюджет Чортківської міської територіальної громади
A18: 1.1.5. Економіка замкнутого циклу
A19: 1.1.5 а | B19: Покращення системи поводження з твердими побутовими відходами | C19: Програма поводження з твердими побутовими відходами на території Чортківської міської територіальної громади на 2021-2023 роки | D19: Управління комунального господарства, КП "Комбінат комунальних підприємств" | E19: ** | F19: 2022-2023 | G19: 1130.1 | H19: 700 | K19: бюджет Чортківської міської територіальної громади
A20: 1.1.5 б | B20: Покращення системи поводження з твердими побутовими відходами | C20: Придбання автотранспортного засобу сміттєвозу | D20: Управління комунального господарства, КП "Комбінат комунальних підприємств" | E20: ** | F20: 2023-2024 | H20: 1500 | I20: 1500 | K20: інвестиційні кошти комунального підприємства
A21: 1.1.5 в | B21: Покращення системи поводження з твердими побутовими відходами | C21: Впровадження роздільного збору ТПВ у житловому секторі, бюджетних уствновах та на підприємствах, закупівля контейнерів для збору ТПВ | D21: Управління комунального господарства, КП "Комбінат комунальних підприємств" | E21: *** | F21: 2022-2023 | G21: 800 | H21: 600 | K21: бюджет Чортківської міської територіальної громади | M21: виконано частково
A22: 1.1.5 г | B22: Покращення системи поводження з твердими побутовими відходами | C22: Придбання гідравлічного пресу 8 тон для ПЕТ-пляшки | D22: Управління комунального господарства, КП "Комбінат комунальних підприємств" | E22: *** | F22: 2022 | G22: 100 | K22: бюджет Чортківської міської територіальної громади | M22: виконано
A23: 1.1.5 д | B23: Покращення системи поводження з твердими побутовими відходами | C23: Облаштування контейнерних майданчиків | D23: Управління комунального господарства, КП "Комбінат комунальних підприємств" | E23: *** | F23: 2022-2023 | G23: 330.1 | H23: 100 | K23: бюджет Чортківської міської територіальної громади
A24: 1.1.5 е | B24: Покращення системи поводження з твердими побутовими відходами | C24: Будівництво сміттєсортувальної лінії | D24: Управління комунального господарства, КП "Комбінат комунальних підприємств" | E24: *** | F24: 2023-2024 | H24: 6000 | K24: бюджет Чортківської міської територіальної громади
A25: 1.1.5 ж | B25: Покращення системи поводження з твердими побутовими відходами | C25: Придбання та встановлення комплектів баків для роздільного збору сміття (32 од.) в закладах освіти | D25: Управління освіти, молоді та спорту | E25: *** | F25: 2023 | H25: 128 | K25: грантові
A26: 1.2 Інструменти міського планування
A27: 1.2.1 Просторове та енергетичне планування
A28: 1.2.1 а | B28: Розвиток просторового планування | C28: Програма забезпечення розроблення (оновлення) містобудівної документації Чортківської міської територіальної громади | D28: відділ архітектури та містобудівного кадастру Чортківської міської ради | E28: ** | F28: 2023-2025 | H28: 620 | I28: 2570 | J28: 1550 | K28: бюджет Чортківської міської територіальної громади
A29: 1.2.1 б | B29: Розвиток просторового планування | C29: Програма ведення містобудівного кадастру Чортківської міської територіальної громади | D29: відділ архітектури та містобудівного кадастру Чортківської міської ради | E29: ** | F29: 2023-2025 | H29: 1700 | I29: 500 | J29: 200 | K29: бюджет Чортківської міської територіальної громади
A30: 1.2.1 в | B30: Розвиток просторового планування | C30: Оновлення шарів системи ГІС | D30: відділ архітектури та містобудівного кадастру Чортківської міської ради | E30: *** | F30: 2023-2025 | H30: 500 | I30: 500 | J30: 500 | K30: грантові
A31: 1.2.2 Мобільність і транспортне планування
A32: 1.2.2 а | B32: Надання якісних послуг з перевезення пасажирським транспортом | C32: Розроблення транспортної моделі Чортківської міської територіальної громади | D32: Управління житлово комунального господарства Чортківської міської ради | E32: * | F32: 2023-2024 | H32: 500 | I32: 500 | K32: бюджет Чортківської міської територіальної громади
A33: 1.2.2 в | B33: Організація ефективного та безпечного дорожнього руху | C33: Розроблення схеми організації дорожнього руху на основі вимог Генерального плану | D33: Управління житлово комунального господарства Чортківської міської ради | E33: * | F33: 2023-2024 | H33: 500 | I33: 500 | K33: бюджет Чортківської міської територіальної громади
A34: 1.3 Зобов'язання власників землі
A35: 1.3.2 Інноваційний, сталий розвиток міських і сільських районів
A36: Всього по розділу 1: бюджет Чортківської міської територіальної громади | H36: =H17+H19+H23+H28+H32+H33 -> 2645 | I36: =I17+I19+I23+I28+I32+I33 -> 3570 | J36: =J17+J19+J23+J28+J32+J33 -> 1550
A37: Всього по розділу 1: інвестиційні кошти комунального підприємства | H37: =H20 -> 1500 | I37: =I20 -> 1500 | J37: =J20 -> 0
A38: Всього по розділу 1: грантові | H38: =H25+H30 -> 628 | I38: =I25+I30 -> 500 | J38: 500
A39: 2. Муніципальні будівлі та споруди
A40: 2.1 Використання енергетичних та водних ресурсів
A41: 2.1.1 Зразкове управління і будівництво бюджетних будівель
A42: 2.1.1 а | B42: Застосування стандартів енергоефективності | C42: Врахування в тендерних закупівлях стандартів енергоефективності | D42: уповноважені особи з публічних звкупівель головних розпорядників коштів | E42: *** | F42: 2022-2025 | G42: не потребує фінансування | H42: не потребує фінансування | I42: не потребує фінансування | J42: не потребує фінансування | K42: не потребує фінансування
A43: 2.1.2 Початковий огляд та моніторинг споживання енергії та води
A44: 2.1.2 а | B44: Ефективне використання енергетичних ресурсів | C44: Періодичне звітування на засідані сесії міської ради про використання енергетичних ресурсів бюджетними будівлями (в т.ч. скорочення викидів СО2) | D44: відділ муніципального розвитку та енергоменеджменту | E44: * | F44: 2022-2025 | G44: не потребує фінансування | H44: не потребує фінансування | I44: не потребує фінансування | J44: не потребує фінансування | K44: не потребує фінансування
A45: 2.1.3 Концепція/стратегія/програма/план/тощо модернізацій, оптимізація роботи
A46: 2.1.3 а | B46: Підвищення енергоефективності | C46: Розроблення Програми енергоефективних заходів в бюджетних установах Чортківської міської ради на 2021 - 2024 роки | D46: відділ муніципального розвитку та енергоменеджменту | E46: *** | F46: 2022-2024 | G46: не потребує фінансування | H46: не потребує фінансування | I46: не потребує фінансування | K46: не потребує фінансування
A47: 2.1.4 Зразкове нове будівництво або ремонт, реновація
A48: 2.1.4 а | B48: Впровадження енергоефективних заходів в бюджетних будівлях | C48: Капітальний ремонт Чортківської мистецької школи Чортківської міської ради (утеплення даху, фасадів, заміна вікон та дверей) | D48: управління культури та мистецтв | E48: *** | F48: 2024-2025 | I48: 20000 | J48: 15000 | K48: грантові
A49: 2.1.4 б | B49: Впровадження енергоефективних заходів в бюджетних будівлях | C49: Капітальний ремонт будівлі Центру культурних послуг с. Біла Чортківської міської ради (облаштування гідроізоляції, заміна вікон, електромонтажні роботи) | D49: управління культури та мистецтв | E49: *** | F49: 2024-2025 | I49: 1500 | J49: 3000 | K49: грантові
A50: 2.1.4 в | B50: Впровадження енергоефективних заходів в бюджетних будівлях | C50: Капітальний ремонт будівлі Центру культурних послуг с. Росохач Чортківської міської ради (облаштування гідроізоляції, заміна вікон, електромонтажні роботи) | D50: управління культури та мистецтв | E50: *** | F50: 2024 | I50: 8000 | K50: грантові
A51: 2.1.4 г | B51: Впровадження енергоефективних заходів в бюджетних будівлях | C51: Реконструкція Чортківської публічної бібліотеки Чортківської міської ради (реконструкція шатрового даху, заміна вікон) | D51: управління культури та мистецтв | E51: *** | F51: 2024-2025 | I51: 7000 | J51: 7000 | K51: грантові
A52: 2.1.4 д | B52: Впровадження енергоефективних заходів в бюджетних будівлях | C52: Капітальний ремонт будівель Чортківської ЗОШ І-ІІІ ст.№ 7 Чортківської міської ради (утеплення цоколю, зовнішніх стін, даху, заміна вікон та дверей, ремонт системи опалення, вентиляції, встановлення сонячних батарей для освітлення придворової території) | D52: управління освіти, молоді та спорту | E52: *** | F52: 2022-2023 | G52: 4950 | H52: 11550 | K52: кредитні кошти | M52: Вартість проєкту згідно з ПКД - 26402,476 тис.грн. 150, 000 тис. євро - грант, 2,5 млн.грн. - міський бюджет, 16,500 млн.грн. - кредит. 2022 рік: 4950 тис.грн.(кредит)+ 536,5 тис.грн.(співфінансування, міський бюджет)+629 тис.грн., 2023 рік: 11550 тис.грн.(кредит) + 1334,50 тис.грн. (співфінансування)
G53: 536.5 | H53: 1334.5 | K53: бюджет Чортківської територіальної громади
A54: 2.1.4 е | B54: Впровадження енергоефективних заходів в бюджетних будівлях | C54: Капітальний ремонт будівель Білівського опорного закладу загальної середньої освіти І-ІІІ ст. Чортківської міської ради (утеплення фасаду, даху, підвала, влаштування відмостки, заміна вікон та дверей) | D54: управління освіти, молоді та спорту | E54: *** | F54: 2024 | I54: 9000 | K54: грантові
A55: 2.1.4 ж | B55: Впровадження енергоефективних заходів в бюджетних будівлях | C55: Капітальний ремонт будівлі ДНЗ №7 Чортківської міської ради (утеплення фасадів, даху, заміна дверей, встановлення ІТП, модернізація системи освітлення) | D55: управління освіти, молоді та спорту | E55: *** | F55: 2024 | I55: 3865 | K55: грантові
A56: 2.1.4 3 | B56: Впровадження енергоефективних заходів в бюджетних будівлях | C56: Капітальний ремонт будівлі ДНЗ №8 Чортківської міської ради (утеплення фасадів, даху, цоколю, заміна вікон та дверей, модернізація системи освітлення) | D56: управління освіти, молоді та спорту | E56: *** | F56: 2024 | I56: 3974 | K56: грантові
A57: 2.1.4 и | B57: Впровадження енергоефективних заходів в бюджетних будівлях | C57: Капітальний ремонт будівлі ЗОШ І-ІІІ ст. №2 Чортківської міської ради (утеплення фасаду, даху, підвала, встановлення ІТП, заміна вікон та дверей) | D57: управління освіти, молоді та спорту | E57: *** | F57: 2024 | I57: 5848.069 | K57: грантові
A58: 2.1.4 і | B58: Впровадження енергоефективних заходів в бюджетних будівлях | C58: Капітальний ремонт будівель ДНЗ №3 Чортківської міської ради (утеплення фасадів, даху, встановлення ІТП, модернізація системи освітлення) | D58: управління освіти, молоді та спорту | E58: *** | F58: 2024 | I58: 2919.919 | K58: грантові
A59: 2.1.4 ї | B59: Впровадження енергоефективних заходів в бюджетних будівлях | C59: Капітальний ремонт будівель ДНЗ №6 Чортківської міської ради (утеплення фасадів,цоколю, заміна вікон та дверей, модернізація системи опалення) | D59: управління освіти, молоді та спорту | E59: *** | F59: 2024 | I59: 4131.05 | K59: грантові
A60: 2.1.4 й | B60: Впровадження енергоефективних заходів в бюджетних будівлях | C60: Капітальний ремонт будівель ДНЗ №1 Чортківської міської ради (утеплення фасадів, даху, заміна вікон та дверей,встановлення ІТП, модернізація системи освітлення) | D60: управління освіти, молоді та спорту | E60: *** | F60: 2024 | I60: 4715.88 | K60: грантові
A61: 2.1.4 к | B61: Впровадження енергоефективних заходів в бюджетних будівлях | C61: Капітальний ремонт будівлі ДНЗ № 9 Чортківської міської ради (утеплення фасадів, даху, заміна вікон та дверей, модернізація системи опалення та освітлення) | D61: управління освіти, молоді та спорту | E61: *** | F61: 2024 | I61: 5720 | K61: грантові
A62: 2.1.4 л | B62: Впровадження енергоефективних заходів в бюджетних будівлях | C62: Капітальний ремонт будівель полікліники та стаціонару Комунальне некомерційне підприємство “Чортківська центральна міська лікарня” (утеплення фасадів, горищ, ремонт даху, встановлення ІТП, заміна вікон) | D62: Управління соціального захисту та охорони здоров’я | E62: *** | F62: 2023 | H62: 45205.769 | K62: кредитні кошти
A63: 2.1.4 м | B63: Впровадження енергоефективних заходів в бюджетних будівлях | C63: Ремонт будівлі Центру культурних послуг м. Чортків ім. К. Рубчакової Чортківської міської ради (заміна дверей, вікон, ремонт опалювальної системи) | D63: управління культури та мистецтв | E63: *** | F63: 2025 | J63: 12000 | K63: грантові
A64: 2.2 Кількісні цільові показники в галузі енергетики, ефективності та впливу на клімат
A65: 2.2.1 Частка ВДЕ в опаленні
A66: 2.2.2 Частка ВДЕ в електроенергії
A67: 2.2.2 а | B67: Використання альтернативних видів енргії | C67: Комунальне некомерційне підприємство “Чортківська центральна міська лікарня” (встановлення сонячних панелей для власного споживання) | D67: Управління соціального захисту та охорони здоров’я | E67: *** | F67: 2023 | H67: 5970 | K67: грантові | M67: встановлено 56 панелей на 21 кВт
A68: 2.2.2 б | B68: Використання альтернативних видів енргії | C68: КП «Чортківське виробниче управління водопровідно - каналізаційного господарства» (встановлення сонячних електростанцій для власного споживання) | D68: КП «Чортківське виробниче управління водопровідно - каналізаційного господарства» | E68: *** | F68: 2023 | H68: 4358.933 | K68: грантові
A69: 2.2.2 в | B69: Використання альтернативних видів енергії | C69: КНП "Центр первинної медико-санітарної допомоги" Чортківської міської ради (встановлення генератора на сонячних панелях (Р=5 кВт) для живлення холодильників по зберіганню вакцин) | D69: КНП "Центр первинної медико-санітарної допомоги" Чортківської міської ради | E69: *** | F69: 2022 | K69: грантові | M69: виконано
A70: 2.2.3 Енергоефективність - опалення
A71: 2.2.3 а | B71: Впровадження енергоефективних заходів в бюджетних будівлях | C71: Встановлення модульної котельні на твердому паливі для обігріву приміщень Білівського опорного закладу загальної середньої освіти І-ІІІ ст. Чортківської міської ради | D71: управління освіти, молоді та спорту | E71: *** | F71: 2022-2023 | G71: 616 | H71: 600 | K71: бюджет Чортківської міської територіальної громади | M71: в процесі
A72: 2.2.3 б | B72: Впровадження енергоефективних заходів в бюджетних будівлях | C72: Дошкільний навчальний заклад № 6 встановлення конденсаційних газових котлів (2 од. х 30 кВт) | D72: управління освіти, молоді та спорту | E72: *** | F72: 2022 | G72: 643.62 | K72: бюджет Чортківської міської територіальної громади | M72: виконано
A73: 2.2.3 в | B73: Впровадження енергоефективних заходів в бюджетних будівлях | C73: Капітальний ремонт приміщень котельні Чортківської спеціалізованої школа-інтернату № 3 спортивного профілю І-ІІІ ступенів імені Романа Ільяшенка Чортківської міської ради Тернопільської області із встановленням твердопаливного котла по вул. С. Коновальця, 13 в м. Чорткові | D73: управління освіти, молоді та спорту | E73: *** | F73: 2022 | G73: 900 | K73: грантові
A74: 2.2.3 г | B74: Впровадження енергоефективних заходів в бюджетних будівлях | C74: Встановлення альтернативного котла на твердому паливі для обігріву приміщеня Горішньовигнанського загальноосвітнього навчального закладу І-ІІІ ступенів - ДНЗ" | D74: управління освіти, молоді та спорту | E74: *** | F74: 2022 | G74: 906.5 | H74: 600 | K74: бюджет Чортківської міської територіальної громади
A75: 2.2.3 д | B75: Впровадження енергоефективних заходів в бюджетних будівлях | C75: Впровадження системи моніторингу показників оточуючого середовища та показиків мікроклімату на дотримання санітарних норм у навчальних закладах | D75: відділ електроних послуг управління комунального господарства | F75: 2024-2025 | I75: 300 | J75: 300 | K75: грантові
A76: 2.2.4 Енергоефективність - електроенергія
A77: 2.2.4 а | B77: Запровадження енергоефективних заходів | C77: Заміна на LED-лампи в закладах Чортківської міської територіальної громади (37 закладів, 6439 од.) | D77: управління освіти, молоді та спорту, управління культури та мистецтв, управління соціального захисту та охорони здоров'я | E77: *** | F77: 2024 | I77: 848.25 | K77: бюджет Чортківської міської територіальної громади
A78: 2.3 Зовнішнє освітлення та ефективність використання води
A79: 2.3.1 Зовнішнє освітлення
A80: 2.3.1 а | B80: Енергоефективне зовнішнє освітлення | C80: Реконструкція вуличного освітлення на площі Героїв Євромайдану Чортківської територіальної громади | D80: КП "Міськсвітло" | E80: *** | F80: 2024 | I80: 31054.713 | K80: державний бюджет | M80: Реалізація заходу в рамках проекту "Капітальний ремонт "Площі Героїв Євромайдану" у м. Чортків, зокрема реконструкція вуличного освітлення"
A81: 2.3.1 б | B81: Енергоефективне зовнішнє освітлення | C81: Реконструкція вуличного освітлення по вул. Т.Шевченка,15 та на пішохідній зоні по вул. Т.Шевченка (ділянка від вул. С.Бандери до площі Героїв Євромайдану) Чортківської територіальної громади | D81: КП "Міськсвітло" | E81: *** | F81: 2024 | I81: 11294.481 | K81: державний бюджет | M81: Реалізація заходу в рамках проекту "Капітальний ремонт скверу по вул. Т. Шевченка, 15 та пішохідної зони по вул. Т. Шевченка (ділянка від вул. С.Бандери до площі Героїв Євромайдану) у м. Чортків
A82: 2.3.1 в | B82: Енергоефективне зовнішнє освітлення | C82: Реконструкція вуличного освітлення на пішохідній зоні по вул. Ринок Чортківської територіальної громади | D82: КП "Міськсвітло" | E82: *** | F82: 2024 | I82: 12066.572 | K82: державний бюджет | M82: Реалізація заходу в ромках проєкту "Реконструкція вуличного освітлення на пішохідній зоні по вул. Ринок Чортківської територіальної громади"
A83: 2.3.1 г | B83: Енергоефективне зовнішнє освітлення | C83: Реконструкція вуличного освітлення на проїзній частині вул. С.Бандери (ділянка Домініканського костелу св. Станіслава до вул. О.Гончара) Чортківської територіальної громади | D83: КП "Міськсвітло" | E83: *** | F83: 2024 | I83: 9110.851 | K83: державний бюджет | M83: Реалізація заходу в рамках проекту "Капітальний ремонт проїзної частини вул. С.Бандери (ділянка Домініканського костелу св. Станіслава до вул. О.Гончара), зокрема реконструкція вуличного освітлення"
A84: 2.3.1 д | B84: Енергоефективне зовнішнє освітлення | C84: Реконструкція вуличного освітлення на ділянці від дороги М19 до мосту через р. Серет | D84: КП "Міськсвітло" | E84: *** | F84: 2024 | I84: 96233.911 | K84: державний бюджет | M84: Реалізація заходу в рамках проекту "Поточний середній ремонт вул. Копичинецька (ділянка від дороги М19 до мосту через р. Серет), зокрема реконструкція вуличного освітлення"
A85: 2.3.1 е | B85: Енергоефективне зовнішнє освітлення | C85: Реконструкція вуличного освітлення по вул. Незалежності окремими ділянками | D85: КП "Міськсвітло" | E85: *** | F85: 2024 | I85: 38044.131 | K85: державний бюджет | M85: Реалізація заходу в рамках проекту "Поточний середній ремонт вул. Незалежності окремими ділянками, зокрема реконструкція вуличного освітлення"
A86: 2.3.1 є | B86: Енергоефективне зовнішнє освітлення | C86: Реконструкція вуличного освітлення по вул. Т.Шевчнка (ділянка від вул. Пітушевського до вул. Копичинецька) | D86: КП "Міськсвітло" | E86: *** | F86: 2024 | I86: 51000 | K86: державний бюджет | M86: Реалізація заходу в рамках проекту "Реконструкція вул. Т.Шевчнка (ділянка від вул. Пітушевського до вул. Копичинецька), зокрема реконструкція вуличного освітлення"
A87: 2.3.1 ж | B87: Енергоефективне зовнішнє освітлення | C87: Диспетчиризація зовнішнього вуличного освітлення, (встановлення блоків керування, та сервера з програмним комплексом) | D87: КП "Міськсвітло" | E87: *** | F87: 2024 | I87: 1000 | K87: бюджет Чортківської територіальної громади
A88: 2.3.2 Ефективність використання води
A89: 2.3.2 а | B89: Ефективне використання води | C89: Капітальний ремонт/реконструкція системи водопостачання та водовідведення в 31 бюджетному закладі | D89: управління освіти, молоді та спорту, управління культури та мистецтв, управління соціального захисту та охорони здоров'я, Чортківська міська територіальна громада | E89: *** | F89: 2023-2025 | K89: бюджет Чортківської територіальної громади
A90: 2.3.2 б | B90: Ефективне використання води | C90: Встановлення аераторів в 46 бюджетних будівлях | D90: управління освіти, молоді та спорту, управління культури та мистецтв, управління соціального захисту та охорони здоров'я, Чортківська міська територіальна громада | E90: *** | F90: 2023 | H90: 65 | K90: бюджет Чортківської територіальної громади
A91: 2.3.2 в | B91: Запровадження енергоефективних заходів | C91: Встановлення бойлерів в закладах дошкільної освіти (20 шт.) | D91: управління освіти, молоді та спорту | E91: *** | F91: 2023 | H91: 80 | K91: бюджет Чортківської територіальної громади
A92: Всього по розділу 2: державний бюджет | H92: 0 | I92: =I80+I81+I82+I83+I84+I86 -> 210760.528 | J92: 0
A93: Всього по розділу 2: бюджет Чортківської міської територіальної громади | H93: =H53+H71+H90+H91 -> 2079.5 | I93: =I87 -> 1000 | J93: 0
A94: Всього по розділу 2: грантові кошти | H94: =H67+H68 -> 10328.933 | I94: =I48+I49+I50+I51+I54+I55+I56+I58+I59+I61+I75 -> 66409.969 | J94: =J48+J49+J51+J63+J75 -> 37300
A95: Всього по розділу 2: кредитні кошти | H95: =H52+H62 -> 56755.769 | I95: 0 | J95: 0
A96: 3. Постачання та розподіл
A97: 3.1 Стратегія підприємства, стратегія постачання
A98: 3.1.1 Корпоративна стратегія постачальників енергоресурсів
A99: 3.2 Продукція, тарифи, інформація для користувачів
A100: 3.2.1 Перелік товарів та послуг
A101: 3.2.3 Заходи впливу на споживання енергії
A102: 3.2.3 а | B102: Підвищення обізнаності споживачів та їх мотивація | C102: Встановлення лічильників з автоматичною передачею даних для обліку споживання енергетичних ресурсів у 47 бюджетних закладах | D102: управління освіти, молоді та спорту, управління культури та мистецтв, управління соціального захисту та охорони здоров'я, Чортківська міська територіальна громада | E102: ** | F102: 2024-2025 | I102: 750 | J102: 750 | K102: бюджет Чортківської територіальної громади
A103: 3.3 Місцеве виробництво енергії на території громади
A104: 3.3.1 Вторинні теплові ресурси
A105: 3.3.2 Опалення та кондиціонування повітря завдяки енергії з ВДЕ на території громади
A106: 3.3.4 Когенерація та скидне тепло, що утворюється від виробництва енергії на території громади та використовуються для нагрівання, охолодження
A107: 3.4 Енергоефективність водопостачання
A108: 3.4.1 Енергоефективність водопостачання
A109: 3.4.1 а | B109: Забезпечення мешканців громади якісним водопостачанням та водовідведенням | C109: Реконструкція водопроводу від водозабору "Біла Камінна" до ТОВ "СЕ Борднеце-Україна" | D109: Управління житлово-комунального господарства, КП "Чортківське виробниче управління водопровідно - каналізаційного господарства" | E109: ** | F109: 2024 | I109: 3394.966 | K109: бюджет Чортківської територіальної громади
A110: 3.4.2 б | B110: Забезпечення мешканців громади якісним водопостачанням та водовідведенням | C110: Упорядкування зон санітарної охорони центрального водозабору питного водопостачання вздовж р. Серет в м. Чортків Тернопільської області | D110: Управління житлово-комунального господарства, КП "Чортківське виробниче управління водопровідно - каналізаційного господарства" | E110: ** | F110: 2024 | I110: 5638.5 | K110: державний бюджет
I111: 596.5 | K111: бюджет Чортківської територіальної громади
A112: 3.4.3 в | B112: Забезпечення мешканців громади якісним водопостачанням та водовідведенням | C112: Реконструкція водопроводу по вул. Монастирська, Незалежності в м. Чортків Тернопільської області. | D112: Управління житлово-комунального господарства, КП "Чортківське виробниче управління водопровідно - каналізаційного господарства" | E112: ** | F112: 2024 | I112: 3545.646 | K112: бюджет Чортківської територіальної громади
A113: 3.4.3 г | B113: Забезпечення мешканців громади якісним водопостачанням та водовідведенням | C113: Реконструкція водопроводу по вул. Січинського, вул. С. Бандери в м. Чортків Тернопільської області | D113: Управління житлово-комунального господарства, КП "Чортківське виробниче управління водопровідно - каналізаційного господарства" | E113: ** | F113: 2024 | I113: 5093.944 | K113: бюджет Чортківської територіальної громади
A114: 3.4.4 д | B114: Ефективне водопостачання та водовідведення | C114: Оновлення схеми водопостачання та водовідведення громади | D114: КП "Чортківське виробниче управління водопровідно - каналізаційного господарства" | E114: ** | F114: 2024-2025 | K114: грантові | M114: 160 тис.грн. придбання приладдя для інвентаризації мереж, нанесення у систему ГІС
A115: 3.4.2 Ефективне використання води
A116: 3.4.2 а | B116: Забезпечення мешканців громади якісним водопостачанням та водовідведенням | C116: Будівництво та реконструкція систем роздільної каналізації, каналізаційних мереж і споруд на них. | D116: КП "Чортківське виробниче управління водопровідно - каналізаційного господарства" | F116: 2023 | H116: 250 | K116: бюджет Чортківської міської територіальної громади
A117: 3.4.2 б | B117: Забезпечення мешканців громади якісним водопостачанням та водовідведенням | C117: Реконструкція каналізаційної мережі по вул. Залізнична, Середня, С.Стрільців, Шопена, Стрімка, Замкова мікрорайону "Залізничний" в м. Чортків Тернопільської області | D117: Управління житлово-комунального господарства, КП "Чортківське виробниче управління водопровідно - каналізаційного господарства" | E117: *** | F117: 2024 | I117: 1587,6 | K117: бюджет Чортківської територіальної громади
I118: 8996.4 | K118: державний бюджет
A119: 3.4.2 в | B119: Ефективне використання водних ресурсів | C119: Оснащення багатоквартирних житлових будинків вузлами комерційного обліку води (284 од.) | D119: КП "Чортківське виробниче управління водопровідно - каналізаційного господарства" | E119: *** | F119: 2023 | H119: 7100 | K119: бюджет Чортківської територіальної громади
A120: 3.4.3 Управління зеленими зонами
A121: 3.4.3 а | B121: Покращення благоустрою громади | C121: Висадження додаткових зелених насаджень на площі Героїв Євромайдану Чортківської територіальної громади | D121: КП "Благоустрій" | E121: *** | F121: 2024 | I121: фінансування передбачено в п. 2.3.1 а | K121: фінансування передбачено в п. 2.3.1 а | M121: Реалізація заходу в рамках проєкту "Капітальний ремонт "Площі Героїв Євромайдану" у м. Чортків, зокрема реконструкція вуличного освітлення"
A122: 3.4.3 б | B122: Покращення благоустрою громади | C122: Висадження додаткових зелених насаджень у сквері по вул. Т.Шевченка,15 та пішохідної зони по вул. Т.Шевченка (ділянка від вул. С.Бандери до площі Героїв Євромайдану) | D122: КП "Благоустрій" | E122: *** | F122: 2024 | I122: фінансування передбачено в п. 2.3.1 б | K122: фінансування передбачено в п. 2.3.1 б | M122: Реалізація заходу в рамках проекту "Капітальний ремонт скверу по вул. Т.Шевченка,15 та пішохідної зони по вул. Т.Шевченка (ділянка від вул. С.Бандери до площі Героїв Євромайдану), зокрема реконструкція вуличного освітлення"
A123: 3.4.3 в | B123: Покращення благоустрою громади | C123: Висадження додаткових зелених насаджень на пішохідній зоні по вул. Ринок Чортківської територіальної громади | D123: КП "Благоустрій" | E123: *** | F123: 2024 | I123: фінансування передбачено в п. 2.3.1 в | K123: фінансування передбачено в п. 2.3.1 в | M123: Реалізація заходу в рамках проекту "Капітальний ремонт пішохідної зони по вул. Ринок у м. Чорткові, зокрема реконструкція вуличного освітлення"
A124: 3.4.3 г | B124: Покращення благоустрою громади | C124: Реконструкція вул.Т.Шевчнка (ділянка від вул. Пітушевського до вул. Копичинецька), зокрема заміна зелених насаджень на нові | D124: КП "Благоустрій" | E124: *** | F124: 2024 | I124: фінансування передбачено в п. 2.3.1 г | K124: фінансування передбачено в п. 2.3.1 г | M124: Реалізація заходу в рамках проекту "Реконструкція вул. Т.Шевчнка (ділянка від вул. Пітушевського до вул. Копичинецька), зокрема реконструкція вуличного освітлення"
A125: 3.4.3 г | B125: Покращення благоустрою громади | C125: Впровадження системи обліку та управління зеленими насадженнями | D125: Відділ електроних послуг управління комунального господарства | E125: * | F125: 2024-2025 | I125: 7 | J125: 7 | K125: бюджет Чортківської територіальної громади
A126: 3.5 Енергоефективність очищення стічних вод
A127: 3.5.1 Енергоефективність очищення стічних вод
A128: 3.5.2 Використання зовнішніх теплових енергоресурсів стічних вод
A129: 3.5.3 Утилізація каналізаційного газу
A130: 3.5.3 б | B130: Проведення ремонтних та інших видів робіт для забезпечення нормального функціонування зовнішніх та внутрішніх водопровідно-каналізаційних мереж | C130: Реконструкція біологічних очисних споруд | D130: КП "Чортківське виробниче управління водопровідно - каналізаційного господарства" | E130: *** | F130: 2022 | G130: 98.2 | K130: бюджет Чортківської територіальної громади | M130: виконано
A131: 3.5.4 Управління дощовою водою
A132: 3.6 Енергія з відходів
A133: 3.6.1 Енергетичне використання відходів
A134: 3.6.1 а | B134: Ефективний менеджмент системи поводження з відходами | C134: Затвердження графіків та маршрутів вивезення твердих побутових відходів на території Чортківської міської територіальної громади | D134: КП "Комбінат комунальних підприємств" | E134: *** | F134: 2023-2025 | G134: не потребує фінансування | H134: не потребує фінансування | I134: не потребує фінансування | J134: не потребує фінансування | K134: не потребує фінансування
A135: 3.6.1 б | B135: Створення інфраструктури для сортування та перероблення пріоритетних видів відходів | C135: Виготовлення паспорта місць видалення відходів | D135: КП "Комбінат комунальних підприємств" | E135: *** | F135: 2023-2024 | K135: бюджет Чортківської територіальної громади
A136: 3.6.1 в | B136: Створення інфраструктури для сортування та перероблення пріоритетних видів відходів | C136: Розробка муніципального плану поводження з відходами Чортківської територіальної громади | D136: КП "Комбінат комунальних підприємств" | E136: *** | F136: 2023-2024 | H136: 300 | I136: 500 | K136: бюджет Чортківської територіальної громади
A137: 3.6.1 в | B137: Створення інфраструктури для сортування та перероблення пріоритетних видів відходів | C137: Впровадження розумної системи поводження з відходами | D137: відділ електроних послуг управління комунального господарства | E137: *** | F137: 2023-2025 | K137: грантові
A138: 3.6.2 Енергетичне використання органічних відходів
A139: 3.6.2 а | B139: Впровадження системи компостування органічних відходів | C139: Забезпечення компостерами закладів Чортківської міської ради, де продукуються органічні відходи (20 од.) | D139: Управління освіти, молоді та спорту, управління соціального захисту та охорони здоров'я, КП "Парковий культурно-спортивний комплекс", КП "Чортківський комбінат комунальних підприємств" | E139: *** | F139: 2023-2024 | H139: 130 | K139: грантові
A140: Всього по розділу 3: державний бюджет | H140: 0 | I140: =I110+I118 -> 14634.9 | J140: 0
A141: Всього по розділу 3: бюджет Чортківської міської територіальної громади | H141: 0 | I141: =I102+I109+I111+I112+I113+I125+I136 -> 13888.056 | J141: =J102+J125 -> 757
A142: Всього по розділу 3: грантові кошти | H142: =H139 -> 130 | I142: 0 | J142: 0
A143: 4. Мобільність
A144: 4.1 Мобільність в адміністрації
A145: 4.1.1 Сприяння усвідомлення проблеми мобільності у адміністрації
A146: 4.1.1 а | B146: Заохочення працівників до сталої мобільності | C146: Організація та проведення кампанії "Велосипедом на роботу" | D146: Управління комунального господарства | E146: ** | F146: 2022-2025 | G146: не потребує фінансування | H146: не потребує фінансування | I146: не потребує фінансування | J146: не потребує фінансування | K146: не потребує фінансування
A147: 4.1.2 Транспортні засоби
A148: 4.1.2 а | B148: Ефективне використання транспортних засобів працівниками | C148: Спільне використання службових автомобілів (наприклад, спільний виїзд кількох служб на одному автомобілі) | D148: Управління комунального господарства | E148: ** | F148: 2022-2025 | G148: не потребує фінансування | H148: не потребує фінансування | I148: не потребує фінансування | J148: не потребує фінансування | K148: не потребує фінансування
A149: 4.1.2 б | B149: Ефективне використання транспортних засобів працівниками | C149: Проведення щорічного збору та аналізу даних про споживання палива транспортними засобами | D149: Управління комунального господарства | E149: ** | F149: 2022-2025 | G149: не потребує фінансування | H149: не потребує фінансування | I149: не потребує фінансування | J149: не потребує фінансування | K149: не потребує фінансування
A150: 4.2 Обмеження швидкості руху транспортних засобів, паркування
A151: 4.2.1 Управління місцями для паркування
A152: 4.2.1 а | B152: Ефективний менеджмент паркувальних зон | C152: Облаштування паркувальної зони на 150 паркомісць | D152: Управління комунального господарства | E152: ** | F152: 2024-2025 | I152: 150 | J152: 350 | K152: бюджет Чортківської територіальної громади
A153: 4.2.1 б | B153: Ефективний менеджмент паркувальних зон | C153: Запровадження новітніх технологій у системі паркування (паркомати, мобільний додаток) | D153: Відділ електроних послуг управління комунального господарства | E153: ** | F153: 2024-2025 | I153: 5000 | J153: 5000 | K153: грантові
A154: 4.2.2 Основні транспортні осі
A155: 4.2.2 а | B155: Організація вулично-дорожньої та транспортної мережі | C155: Капітальний ремонт дорожнього покриття доріг та тротуарів по вул. Незалежності (вул. Монастирська -вул. Шевченка), вул. Січинського - вул. В.Великого, вул. Синенького, вул. Маньовського, вул. Рубчакової, вул. Ринок (загальною довжиною 2,03 км) | D155: Управління комунального господарства, КП "Благоустрій" | E155: ** | F155: 2024 | I155: 2640 | K155: бюджет Чортківської територіальної громади
A156: 4.2.3 Привабливий дизайн громадських просторів і зниження швидкості
A157: 4.2.3 а | B157: Обмеження швидкості для транспортних засобів та пріоритетність для пішохідних зон | C157: Обмеження руху в центральній частині міста, обмеження швидкості, облаштування "лежачих поліцейських" | D157: Управління комунального господарства | E157: ** | F157: 2022-2025 | H157: 50 | I157: 150 | K157: бюджет Чортківської територіальної громади
A158: 4.3 Мобільність без застосування моторизованих транспортних засобів
A159: 4.3.1 Мережа пішохідних доріжок, дорожні знаки
A160: 4.3.1 б | B160: Створення привабливої, безпечної мережі пішохідних доріжок з інформаційно-вказівними знаками | C160: Поточний ремонт пішохідної мережі, тротуарів з пониженням бордюрів та використання тактильної плитки. (вул. Незалежності, Ягільницька, Л.Українки, Синенького, Копичинецька, с. Біла | D160: Управління комунального господарства, КП "Благоустрій" | F160: 2023 | H160: 3000 | K160: бюджет Чортківської територіальної громади
A161: 4.3.1 б | B161: Модернізація пішохідної мережі | C161: Капітальний ремонт дорожнього покриття тротуарів по вул. Копичинецька, Незалежності, Степана Бандери, Йосипа Сліпого (загальною довжиною 1,06 км) | D161: Управління комунального господарства, КП "Благоустрій" | E161: ** | F161: 2023-2024 | H161: 1200 | I161: 1583 | K161: бюджет Чортківської територіальної громади
A162: 4.3.2 Мережа велосипедних доріжок, вивісок
A163: 4.3.2 а | B163: Розширення мережі велодоріжок | C163: Капітальний ремонт тротуарів з облаштуванням велодоріжок по вул. Незплежності (1,456 км), вул. Ягільницька (1,486 км), вул. Січиньського | D163: управління комунального господарства | E163: ** | F163: 2023 | H163: 3300 | K163: бюджет Чортківської територіальної громади | M163: Поточний ремонт тротуару з облаштуванням велодоріжок
A164: 4.3.3 Велопарковки
A165: 4.3.3 а | B165: Забезпечення достатньої кількості безпечних, доступних і зручних місць для паркування | C165: Встановлення велопарковок у всіх ключових точках тяжіння (включаючи зупинки громадського, приміського транспорту тощо) | D165: управління комунального господарства | E165: ** | F165: 2024-2025 | K165: бюджет Чортківської територіальної громади
A166: 4.4 Громадський транспорт
A167: 4.4.1 Якість доступного громадського транспорту
A168: 4.4.1 а | B168: Забезпечення високої якості громадського транспорту | C168: Розроблення Програми розвитку та вдосконалення пасажирського транспорту | D168: управління комунального господарства | E168: ** | F168: 2024 | I168: не потребує фінансування | K168: не потребує фінансування
A169: 4.4.1 б | B169: Забезпечення високої якості громадського транспорту | C169: Облаштування на зупинках громадського транспорту електроних інформаційних табло | D169: відділ електроних послуг управління комунального господарства | E169: ** | F169: 2024-2025 | K169: бюджет Чортківської територіальної громади
A170: 4.4.2 Пріоритетність громадського транспорту
A171: 4.4.2 а | B171: Забезпечення пріоритетності громадського транспорту | C171: Капітальний ремонт автобусних зупинок (25 шт.) | D171: Управління комунального господарства, КП "Благоустрій" | E171: * | F171: 2023-2025 | H171: 500 | K171: бюджет Чортківської територіальної громади
A172: 4.4.3 Мультимодальна мобільність
A173: 4.4.3 а | B173: Розвиток та популяризація екологічно дружньої мультимодальної мобільність | C173: Прокат засобів мікромобільності (самокати, велосипеди тощо) | D173: Управління комунального господарства, відділ електроних послуг | E173: ** | F173: 2024-2025 | K173: грантові
A174: 4.5 Маркетинг мобільності
A175: 4.5.1 Маркетинг міської мобільності
A176: 4.5.1 а | B176: Забезпечення проведення регулярних, активних піар і маркетингових заходів | C176: Проведення велоднів | D176: відділ муніципального розвитку та енергоменеджменту | E176: ** | F176: 2023-2025 | K176: не потребує фінансування
A177: 4.5.1 в | B177: Розвиток екологічно чистих видів транспорту | C177: Реалізація та підтримка туристичних маршрутів веломережі та супутньої інфраструктури для велотуристів (навігації, місць відпочинку) | E177: ** | F177: 2024-2025 | K177: грантові
A178: 4.5.1 г | B178: Забезпечення проведення регулярних, активних піар і маркетингових заходів | C178: Розроблення мапи велотуристичних маршрутів з мережею велодружніх закладів туристичної та супутніх сфер | E178: ** | F178: 2024-2025 | K178: грантові
A179: 4.5.1 д | B179: Розвиток екологічно чистих видів транспорту | C179: Проведення аудиту всіх культурних та природних обєктів, а також вже існуючої туристичної інфраструктури, яка потенційно може бути цікавою велотуристам | E179: ** | F179: 2024-2025 | K179: грантові
A180: Всього по розділу 4: бюджет Чортківської міської територіальної громади | H180: =H157+H160+H163+H171 -> 6850 | I180: =I152+I155+I161 -> 4373 | J180: =J152 -> 350
A181: Всього по розділу 4: грантові кошти | H181: 0 | I181: =I153 -> 5000 | J181: =J153 -> 5000
A182: 5. Внутрішня організація
A183: 5.1 Внутрішні структури
A184: 5.1.1 Людські ресурси, організація
A185: 5.1.1 а | B185: Забезпечення наявності необхідних кваліфікованих кадрів | C185: Внесення змін до Посадових інструкцій ченів робочої групи ЄЕВ, інших осіб відповідальних за реалізацію завдань передбачених Європейською енергетичною відзнакою | D185: особи, відповідальні за реалізацію завдань, передбачених Європейською енергетичною | E185: *** | F185: 2023 | H185: не потребує фінансування | K185: не потребує фінансування
A186: 5.1.2 Робоча група
A187: 5.1.2 а | B187: Створення Коородинаційної групи та Робочої групи відповідальних за розробку, впровадження та моніторинг концепцій/стратегій/програм/планів | C187: Організація та проведення регулярних засідань координаційної та робочої груп ЄЕВ | D187: відділ муніципального розвитку та енергоменеджменту | E187: *** | F187: 2022-2025 | G187: не потребує фінансування | H187: не потребує фінансування | I187: не потребує фінансування | J187: не потребує фінансування | K187: не потребує фінансування
A188: 5.2 Внутрішні процеси
A189: 5.2.1 Інтеграція персоналу
A190: 5.2.1 а | B190: Запровадження системи енергоменеджменту в бюджетних будівлях | C190: Вдосконалення системи енергетичного моніторингу, проведення енергоаудитів, виготовлення технічної документації для бюджетних будівель | D190: Управління освіти молоді та спорту, Управління соціального захисту та охорони здоров'я, Управління культури та мистецтв, Управління комунального господарства | E190: *** | F190: 2022-2025 | H190: 1000 | I190: 1000 | J190: 1000 | K190: бюджет Чортківської територіальної громади
A191: 5.2.1 а | B191: Підвищення обізнаності, мотивації та стимулювання співробітників | C191: Запровадження системи стимулювання впровадження енергоефективних заходів у бюджетних будівлях | D191: Відділ муніципального розвитку та енергоменеджменту | E191: *** | F191: 2023 | K191: грантові
A192: 5.2.2 Огляд ефективності та щорічне планування
A193: 5.2.2 а | B193: Щорічний моніторинг та оновлення Плану заходів Європейської енергетичної відзнаки | C193: Підготовка щоквартальних, річних звітів про результати виконання Плану заходів Європейської енергетичної відзнаки | D193: відділ муніципального розвитку та енергоменеджменту | E193: *** | F193: 2022-2025 | G193: не потребує фінансування | H193: не потребує фінансування | I193: не потребує фінансування | J193: не потребує фінансування | K193: не потребує фінансування
A194: 5.2.3 Подальше навчання
A195: 5.2.3 а | B195: Заохочення і подальша підготовка співробітників і політичних представників у сфері енергетики та клімату | C195: Участь у семінарах, тренінгах з метою підвищення кваліфікації спеціаліститів структурних підрозділів, депутатів, відповідальних осіб у бюджетних закладах | D195: Управління освіти молоді та спорту, Управління соціального захисту та охорони здоров'я, Управління культури та мистецтв, Управління комунального господарства | E195: *** | F195: 2022-2025 | G195: не потребує фінансування | H195: не потребує фінансування | I195: не потребує фінансування | J195: не потребує фінансування | K195: не потребує фінансування
A196: 5.2.4 Закупівлі
A197: 5.2.4 а | B197: Врахування енергетичних та кліматичних факторів | C197: Враховувати при здійсненні закупівель: - клас ефективності офісного обладнання; - екологічність миючих засобів тощо | D197: Управління освіти молоді та спорту, Управління соціального захисту та охорони здоров'я, Управління культури та мистецтв, Управління комунального господарства | E197: *** | F197: 2022-2025 | G197: не потребує фінансування | H197: не потребує фінансування | I197: не потребує фінансування | J197: не потребує фінансування | K197: не потребує фінансування
A198: 5.3 Фінанси
A199: 5.3.1 Бюджет на реалізацію енергетичної політики в рамках роботи органів місцевого самоврядування
A200: 5.3.1 а | B200: Вдосконалення енергетичної політики муніципалітету | C200: Сплата членських внесків в Асоціацію "Енергоефективні міста України" | D200: відділ муніципального розвитку та енергоменеджменту | E200: *** | F200: 2022-2025 | H200: 8 | I200: 8 | J200: 8 | K200: бюджет Чортківської територіальної громади | L200: Глянути в попередньому акті, рахунку. Або уточнити в Асоціації Енергоефективних міст України | M200: уточнити чи плануються заходи по цьому і заповнити інформацію
A201: 5.3.1 б | B201: Вдосконалення енергетичної політики муніципалітету | C201: Сплата річного внеску за впровадження та користування Європейською енергетичною відзнакою | D201: відділ муніципального розвитку та енергоменеджменту | E201: *** | F201: 2022-2025 | H201: 40 | I201: 40 | J201: 40 | K201: бюджет Чортківської територіальної громади | L201: це варто уточнити в Асоціації Енергоефективних міст України | M201: уточнити чи плануються заходи по цьому і заповнити інформацію
A202: 5.3.1 в | B202: Вдосконалення енергетичної політики муніципалітету | C202: Оплата послуг аудитора Європейської енергетичної відзнаки | D202: відділ муніципального розвитку та енергоменеджменту | E202: *** | F202: 2025 | J202: 20 | K202: бюджет Чортківської територіальної громади | L202: це варто уточнити в Асоціації Енергоефективних міст України
A203: 5.3.1 г | B203: Вдосконалення енергетичної політики муніципалітету | C203: Оплата послуг консультанта Європейської енергетичної відзнаки | D203: відділ муніципального розвитку та енергоменеджменту | E203: *** | F203: 2023-2025 | K203: бюджет Чортківської територіальної громади | L203: це варто уточнити в Асоціації Енергоефективних міст України
... 65 more rows

Sheet Лист1
B2: Енергомодернізація житлових будівель | C2: Впровадження енергоефективних заходів у будинку ОСББ "Старий дім", вул. Шевченка 22-28, відповідно до прогами енергомодернізації "Енергодім" | D2: органи правління ОСББ | E2: *** | F2: 2022 | G2: орієнт. 2500 | K2: міський бюджет, державний бюджет | M2: Деталізувати обсяг фінансування (вказати суму з бюджету територіальної громади та окремо суму з державного бюджету) Замінали слово "будинків" на слова "житлові будівлі" Замінила слово "Виконання" на слово "Впровадження" Замінила слово "Енергозберігаючі" на слово "Енергоефективні" Замінила виконавців "органи правління ОСББ" на "відділ житлово-комунального господарства" Замінила слова "міський бюджет" на "бюджет територіальної громади"
B3: Енергомодернізація житлових будівель | C3: Впровадження енергоефективних заходів у будинку ОСББ "Любисток 9", вул. Незалежності 86, відповідно до прогами енергомодернізації "Енергодім" | D3: органи правління ОСББ | E3: *** | F3: 2022 | G3: 7200 | K3: міський бюджет, державний бюджет | M3: Деталізувати обсяг фінансування (вказати суму з бюджету територіальної громади та окремо суму з державного бюджету) Замінали слово "будинків" на слова "житлові будівлі" Замінила слово "Виконання" на слово "Впровадження" Замінила слово "Енергозберігаючі" на слово "Енергоефективні" Замінила виконавців "органи правління ОСББ" на "відділ житлово-комунального господарства" Замінила слова "міський бюджет" на "бюджет територіальної громади"
B11: Запровадження енергоефективних заходів | C11: Запровадження системи енергоменеджменту в бюджетних будівлях та енергоаудит будівель, виготовлення технічної документації | D11: Відділ муніципального розвитку та енергоменеджменту Чортківської міської ради | E11: *** | F11: 2022-2025 | G11: 250000 | H11: 500000 | I11: 500000 | J11: 1000 | K11: міський бюджет, державний бюджет | M11: Вказати дослівну назву з розробленої проєктно-кошторисної (ПКД) документації (за наявності)? Вказати перелік робіт, які стосуються енергоефективності та передбачені в ПКД. Замінила слова "міський бюджет" на "бюджет територіальної громади"
B12: Будівництво інвестиційних обєктів | C12: Будівництво мереж індустріального парку "Chortkiv West" | D12: Відділ муніципального розвитку та енергоменеджменту Чортківської міської ради | E12: *** | F12: 2022-2026 | G12: 4000 | H12: 8000 | I12: 10000 | J12: 30000 | K12: міський бюджет, державний бюджет
B13: Будівництво інвестиційних обєктів | C13: Нове будівництво "Креативний ХАБ- Територія Успіху" з використанням енергоефективних матеріалів | D13: Відділ муніципального розвитку та енергоменеджменту Чортківської міської ради | E13: *** | F13: 2022 | G13: 11000 | K13: міський бюджет, державний бюджет | M13: Деталізувати, скільки шт. Замінила слова "міський бюджет" на "бюджет територіальної громади"
A15: 1 *** - високий пріоритет, захід програми виконується в першу чергу, ** - середній пріоритет, захід програми виконується в другу чергу, * - низький пріорите, захід програми виконується в третю чергу
